Cogmind - Beta 16.1 @@@ ROGUE MODE // 2026.04.04 @ 19:34:30 Player: Rocket Result: Destroyed by G-34 Mercenary with Small Laser Performance ------------- Evolutions (0) 0 Regions Visited (4) 800 Robots Destroyed (23) 115 Value Destroyed (487) 487 Prototype IDs (0) 0 Alien Tech Used (0) 0 Bonus (35) 35 TOTAL SCORE: 1437 Bonus ------- Follower Combat Kills 35 Cogmind --------- Core Integrity 0/250 Matter 298/300 Energy 250/250 System Corruption 8% Temperature Cool (6) Movement Walking (190) Ox1 Location -9/Mines Parts ------- > --- POWER (1) -------- Ion Engine > --- PROPULSION (2) --- Aluminum Leg Carbon-fiber Leg > --- UTILITY (2) ------ Large Storage Unit > --- WEAPON (2) ------- Light Assault Rifle Light Assault Rifle > --- INVENTORY (15) --- Light Ion Engine Aluminum Leg Aluminum Leg Aluminum Leg Improved Aluminum Leg Compact Wheel Scrap Suit Heat Sink Signal Interpreter Small Laser Light Assault Rifle Heavy Hammer Ripper Peak State ------------ > --- POWER ------------ Ion Engine > --- PROPULSION ------- Aluminum Leg Carbon-fiber Leg > --- UTILITY ---------- Large Storage Unit Improved Terrain Scanner > --- WEAPON ----------- Light Assault Rifle Ripper > --- INVENTORY -------- Ion Engine Light Ion Engine Aluminum Leg Compact Wheel Scrap Suit Heat Sink Signal Interpreter Light Assault Rifle Light Assault Rifle EMP Blaster Heavy Hammer [Rating: 16] Favorites ----------- Power Ion Engine Engine Ion Engine Propulsion Light Treads Treads Light Treads Leg Carbon-fiber Leg Wheel Wheel Utility Improved Terrain Scanner Device Improved Terrain Scanner Storage Small Storage Unit Weapon Light Assault Rifle Ballistic Gun Light Assault Rifle Launcher EMP Blaster Slashing Weapon Ripper Build | -11 -10 -10 -10 -9 ------- Run | Yrd Mat Min Exi Min Slots Evolved . | . . . . . Power . | . . . . . Propulsion . | . . . . . Utility . | . . . . . Weapon . | . . . . . Parts Attached 25 | 7 1 5 1 11 Power 3 | 1 . 1 . 1 Engine 3 | 1 . 1 . 1 Core . | . . . . . Reactor . | . . . . . Propulsion 10 | 2 . 3 . 5 Treads 3 | 2 . 1 . . Leg 5 | . . . . 5 Wheel 2 | . . 2 . . Hover . | . . . . . Flight . | . . . . . Utility 3 | 2 . . 1 . Device 1 | 1 . . . . Storage 2 | 1 . . 1 . Processor . | . . . . . Hackware . | . . . . . Protection . | . . . . . Artifact . | . . . . . Weapon 9 | 2 1 1 . 5 Energy Gun . | . . . . . Energy Cannon . | . . . . . Ballistic Gun 7 | 2 1 1 . 3 Ballistic Cannon . | . . . . . Launcher 1 | . . . . 1 Special Weapon . | . . . . . Impact Weapon . | . . . . . Slashing Weapon 1 | . . . . 1 Piercing Weapon . | . . . . . Special Melee Weapon . | . . . . . Unidentified Prototypes . | . . . . . Corrupted Parts 2 | . . . . 2 System Corruption 8 | . . . . 8 Parts Lost 10 | . . 4 . 6 Power 1 | . . 1 . . Propulsion 4 | . . 2 . 2 Utility . | . . . . . Weapon 5 | . . 1 . 4 Highest Loss Streak 4 | . . 4 . 2 To Critical Strikes . | . . . . . Average Backups 6 | 1 4 6 7 8 Power 1 | . 1 1 1 1 Propulsion 2 | 1 3 2 2 2 Utility 1 | . . 1 3 3 Weapon 1 | . . 1 1 1 Tool/Special . | . . . . . Unused Backups 9 | . . 1 1 7 Power 1 | . . . . 1 Propulsion 2 | . . . . 2 Utility 4 | . . . 1 3 Weapon 2 | . . 1 . 1 Tool/Special . | . . . . . Average Slot Usage (%) 97 | . 100 95 100 97 Engine 13 | . 14 13 14 14 Treads 9 | . 28 10 14 2 Leg 11 | . . . . 23 Wheel 5 | . . 14 14 1 Device 13 | . 14 14 14 13 Storage 14 | . 14 14 14 14 Ballistic Gun 25 | . 28 27 28 22 Slashing Weapon 2 | . . . . 4 Peak Build Rating 16 | 9 9 10 10 16 Average Rating 10 | 6 9 9 10 12 On Entrance 7 | . 9 9 10 10 Avg Prop Armor Cover (%) 12 | . . 13 13 12 Naked Turns . | . . . . . Heaviest Build 30 | 13 13 13 28 30 Greatest Support 40 | 40 40 40 10 28 Greatest Overweight (x) 2 | . . 1 2 2 Average Overweight (x) . | . . . 1 1 Largest Inventory Capacity 15 | 8 8 8 15 15 Average Capacity 11 | 6 8 8 9 15 Most Carried 14 | 4 6 8 9 14 Average Carried 7 | 2 4 6 8 9 Final Capacity 15 | 8 8 8 15 15 Final Carried 14 | 4 6 8 8 14 Class Distribution -------------------- 74% | Scavenger-Mutant 25% | Mutant Dominant Class ---------------- Mutant | -10/Materials Scavenger-Mutant | -10/Mines Scavenger-Mutant | -10/Exiles Scavenger-Mutant | -9/Mines Resources | -11 -10 -10 -10 -9 ----------- Run | Yrd Mat Min Exi Min Matter Collected 753 | 281 159 90 . 223 Remotely . | . . . . . Salvage Created 651 | 75 207 87 . 282 Parts 55 | 8 19 8 . 20 Haulers Intercepted . | . . . . . Recyclers Shooed 2 | 1 1 . . . Parts Field Recycled . | . . . . . Retrieved Matter . | . . . . . Parts Self-Destructed . | . . . . . Prevented . | . . . . . Parts Restored . | . . . . . Kills | -11 -10 -10 -10 -9 ------- Run | Yrd Mat Min Exi Min Combat Hostiles Destroyed 20 | . 9 2 . 9 Guns 18 | . 9 2 . 7 AOE 2 | . . . . 2 Classes Destroyed 4 | 1 2 . . 1 Tunneler 3 | 3 . . . . Swarmer 10 | . 6 . . 4 Grunt 9 | . 3 2 . 4 Duelist 1 | . . . . 1 Best Kill Streak 4 | 2 4 2 . 4 Combat Bots Only 4 | . 4 2 . 4 Max Kills in Single Turn 2 | 1 1 1 . 2 Gunslinging . | . . . . . Exploded 2 | . . . . 2 Melee . | . . . . . Uniques/NPCs Destroyed . | . . . . . Combat | -11 -10 -10 -10 -9 -------- Run | Yrd Mat Min Exi Min Hostile Shots Fired 157 | . 86 18 . 53 Missed 51 | . 28 4 . 19 Hits 106 | . 58 14 . 34 Melee 5 | . . . . 5 Projectile 101 | . 58 14 . 29 Critical Strikes 1 | . . . . 1 Damage Taken 1223 | . 553 196 . 474 Core 252 | . 87 40 . 125 Absorbed by Shields . | . . . . . Core Remaining (%) 100 | 100 . . . . Volleys Fired 73 | 6 32 8 . 27 Largest 2 | 2 2 2 . 2 Hottest 40 | 40 40 40 . 40 Shots Fired 134 | 12 64 16 . 42 Gun 133 | 12 64 16 . 41 Cannon . | . . . . . Launcher 1 | . . . . 1 Special . | . . . . . Kinetic 133 | 12 64 16 . 41 Thermal . | . . . . . Explosive . | . . . . . Electromagnetic 1 | . . . . 1 Robot Hit Streak 12 | 2 12 5 . 8 Robot Miss Streak 9 | 3 9 3 . 2 Penetration Max . | . . . . . Secondary Targets 3 | . 2 . . 1 Max Gunslinging Chain 1 | . 1 . . 1 Shots Hit Robots 83 | 4 34 10 . 35 Core Hits 40 | 3 14 6 . 17 Critical Kills . | . . . . . Critical Parts Destroyed 1 | . 1 . . . Critical Strikes 1 | . 1 . . . Destroy 1 | . 1 . . . Melee Attacks 7 | . . . . 7 Impact . | . . . . . Slashing 7 | . . . . 7 Piercing . | . . . . . Sneak Attacks . | . . . . . Combat Hostiles . | . . . . . Follow-up Attacks . | . . . . . Damage Inflicted 1032 | 50 399 94 . 489 Guns 842 | 50 399 94 . 299 Cannons . | . . . . . Explosions 87 | . . . . 87 Melee 103 | . . . . 103 Ramming . | . . . . . Kinetic 842 | 50 399 94 . 299 Thermal . | . . . . . Explosive . | . . . . . Electromagnetic 87 | . . . . 87 Impact . | . . . . . Slashing 103 | . . . . 103 Piercing . | . . . . . Highest Corruption 8 | . . . . 8 Average Corruption 7 | . . . . 7 Corruption Purged . | . . . . . Corruption Blocked . | . . . . . Effects 2 | . . . . 2 Message Errors 1 | . . . . 1 Parts Rejected 1 | . . . . 1 Overload Shots . | . . . . . Overflow Damage 4 | . . . . 4 Projectiles . | . . . . . Explosions 4 | . . . . 4 Melee . | . . . . . Knockbacks . | . . . . . Impact . | . . . . . Kinetic . | . . . . . Secondary . | . . . . . Self-Inflicted Damage . | . . . . . Shots . | . . . . . Rammed . | . . . . . Targets Rammed . | . . . . . Kicked . | . . . . . Crushed . | . . . . . Highest Temperature 36 | . 36 24 . 16 Average Temperature 12 | . 14 11 . 8 Received Heat Transfer 384 | . 186 108 . 90 Siege Activations . | . . . . . Martial Activations . | . . . . . Shielding Activations . | . . . . . Robots Disrupted . | . . . . . Combat Hostiles . | . . . . . Robots Corrupted . | . . . . . Combat Hostiles . | . . . . . Parts Fried . | . . . . . Impact Corruptions . | . . . . . Robots Melted . | . . . . . Combat Hostiles . | . . . . . Parts Melted . | . . . . . Heat Transferred . | . . . . . Parts Sabotaged . | . . . . . Parts Stolen . | . . . . . Parts Stripped . | . . . . . Power Chain Reactions . | . . . . . Alert | -11 -10 -10 -10 -9 ------- Run | Yrd Mat Min Exi Min Maximum Alert Level 1 | . 1 . . . Low Security (%) 98 | 100 94 100 . 100 Level 1 1 | . 5 . . . Level 2 . | . . . . . Level 3 . | . . . . . Level 4 . | . . . . . Level 5 . | . . . . . High Security . | . . . . . Max Security . | . . . . . Peak Influence 215 | 5 215 79 . 60 Initial 79 | . . 79 . . Average 25 | 2 72 28 . 12 Influence Increases 582 | 15 285 50 . 232 Destroy 0b10 Robot/C 420 | . 180 40 . 200 Destroy 0b10 Robot/NC 15 | 15 . . . . Destroy Leader 70 | . 30 10 . 30 Allied During Kill 2 | . . . . 2 Lose Combat Pursuer 75 | . 75 . . . Influence Decreases 564 | 15 80 255 . 214 Entered New Map 126 | . . 126 . . Time Decay 326 | 15 80 89 . 142 Lost Part 92 | . . 40 . 52 Lost Ally 20 | . . . . 20 Squads Dispatched 3 | . 3 . . . Investigation 2 | . 2 . . . Extermination . | . . . . . Reinforcement 1 | . 1 . . . Assault . | . . . . . Garrison . | . . . . . Intercept . | . . . . . Searches Triggered . | . . . . . Construction Impeded . | . . . . . Haulers Reinforced . | . . . . . Active Scanning Responses . | . . . . . Cargo Convoy Interrupts . | . . . . . Stealth | -11 -10 -10 -10 -9 --------- Run | Yrd Mat Min Exi Min Distress Signals . | . . . . . Communications Jammed . | . . . . . Distress Signals . | . . . . . Times Spotted 32 | . 17 2 . 13 Peak Tracking Total 6 | . 6 2 . 4 Tactical Retreats 2 | . 2 . . . Traps | -11 -10 -10 -10 -9 ------- Run | Yrd Mat Min Exi Min Traps Triggered 2 | . 2 . . . Indirectly . | . . . . . Trap Hack Attempts . | . . . . . Triggered . | . . . . . Disarmed . | . . . . . Reprogrammed . | . . . . . Reused . | . . . . . Traps Extracted . | . . . . . Installed . | . . . . . Triggered . | . . . . . Machines | -11 -10 -10 -10 -9 ---------- Run | Yrd Mat Min Exi Min Machines Disabled . | . . . . . Max in Single Turn . | . . . . . Machines Repaired . | . . . . . Machines Dismantled . | . . . . . Machines Sabotaged . | . . . . . Overloaded Fab Kills . | . . . . . Hacking | -11 -10 -10 -10 -9 --------- Run | Yrd Mat Min Exi Min Machines Accessed 1 | . . . 1 . Terminals . | . . . . . Fabricators . | . . . . . Repair Stations . | . . . . . Recycling Units . | . . . . . Scanalyzers . | . . . . . Garrison Access . | . . . . . Total Hacks 23 | . . . 23 . Successful 23 | . . . 23 . Failed . | . . . . . Catastrophic . | . . . . . Database Lockouts . | . . . . . Manual . | . . . . . Terminals . | . . . . . Fabricators . | . . . . . Repair Stations . | . . . . . Recycling Units . | . . . . . Scanalyzers . | . . . . . Garrison Access . | . . . . . Terminal Hacks 23 | . . . 23 . Record 23 | . . . 23 . Fabricator Hacks . | . . . . . Repair Station Hacks . | . . . . . Recycling Unit Hacks . | . . . . . Scanalyzer . | . . . . . Garrison Access Hacks . | . . . . . Unauthorized Hacks . | . . . . . Terminals . | . . . . . Fabricators . | . . . . . Repair Stations . | . . . . . Recycling Units . | . . . . . Scanalyzers . | . . . . . Garrison Access . | . . . . . Data Cores Recovered . | . . . . . Used . | . . . . . Hacking Detections . | . . . . . Full Trace Events . | . . . . . Feedback Events . | . . . . . Feedback Blocked . | . . . . . Robot Schematics Acquired . | . . . . . Robots Built . | . . . . . Authchips . | . . . . . Time . | . . . . . Total Robot Build Rating . | . . . . . Part Schematics Acquired . | . . . . . Parts Built . | . . . . . Authchips . | . . . . . Time . | . . . . . Total Part Build Rating . | . . . . . Part Studies Acquired . | . . . . . Parts Repaired . | . . . . . Time . | . . . . . Parts Recycled . | . . . . . Recycled Matter . | . . . . . Retrieved Matter . | . . . . . Retrieved Components . | . . . . . Parts Scanalyzed . | . . . . . Part Schematics Acquired . | . . . . . Parts Damaged . | . . . . . Bothacking | -11 -10 -10 -10 -9 ------------ Run | Yrd Mat Min Exi Min Used RIF Installer . | . . . . . Robots Hacked . | . . . . . Non-combat . | . . . . . Combat . | . . . . . Robot Hacks Applied . | . . . . . Relay Couplers Released . | . . . . . Fabnet Peak Effective % . | . . . . . Robots Rewired . | . . . . . Allies Hacked . | . . . . . Hacks Repelled . | . . . . . Allies | -11 -10 -10 -10 -9 -------- Run | Yrd Mat Min Exi Min Total Allies 1 | . . . . 1 Largest Group 1 | . . . . 1 Highest-Rated Group 31 | . . . . 31 Highest-Rated Ally 31 | . . . . 31 Total Orders . | . . . . . Ally Attacks 8 | . . . . 8 Total Damage 86 | . . . . 86 Kills 1 | . . . . 1 Allies Corrupted . | . . . . . Allies Melted . | . . . . . Intel | -11 -10 -10 -10 -9 ------- Run | Yrd Mat Min Exi Min Active Infowar (turns) 1395 | 88 227 283 153 644 Terrain 1395 | 88 227 283 153 644 Robot Analysis Total . | . . . . . Derelict Logs Recovered 3 | . . 3 . . Drone Launches . | . . . . . Drone Recoveries . | . . . . . Exploration | -11 -10 -10 -10 -9 ------------- Run | Yrd Mat Min Exi Min Turns Passed 1452 | 136 227 283 153 653 Spaces Moved 846 | 69 80 240 154 303 Core 5 | 5 . . . . Treads 147 | 64 80 1 . 2 Legs 255 | . . . . 255 Wheels 439 | . . 239 154 46 Hover . | . . . . . Flight . | . . . . . Fastest Speed 50 | 50 160 80 95 110 Average Speed 135 | 152 160 94 98 176 Slowest Speed 240 | 160 160 160 110 240 Overloaded Moves . | . . . . . Propulsion Burnouts . | . . . . . Robots Hopped . | . . . . . Potential Cave-ins . | . . . . . Cave-ins Triggered . | . . . . . Exploration Rate (%) 35 | 4 22 48 51 51 Regions Visited 4 Branch Regions 3 Pre-discovered Areas 4 | . . 3 1 . Known Exits Taken . | . . . . . Unknown Exits Taken 4 | 1 1 1 1 . Scrap Searched 5 | . . 2 . 3 Spaces Dug . | . . . . . Terrain Destroyed . | . . . . . Melee . | . . . . . Projectile . | . . . . . AOE . | . . . . . Terrain Rammed . | . . . . . Walls Destroyed . | . . . . . Machines Disabled . | . . . . . Actions | -11 -10 -10 -10 -9 --------- Run | Yrd Mat Min Exi Min Total 1011 | 85 118 282 157 369 Wait 33 | . 5 23 . 5 Move 842 | 68 79 239 153 303 Hop . | . . . . . Pick Up 19 | 4 1 5 1 8 Fast Attach 16 | 7 . 2 . 7 Attach 7 | . . 3 . 4 Detach . | . . . . . Swap 8 | . 1 . 1 6 Drop 6 | . . 2 2 2 Fire 73 | 6 32 8 . 27 Melee 7 | . . . . 7 Ram . | . . . . . Kick . | . . . . . Crush . | . . . . . Escape Stasis . | . . . . . Rewire . | . . . . . Trap . | . . . . . Miscellaneous . | . . . . . Route ------- -11/Scrapyard -10/Materials -10/Mines -10/Exiles -9/Mines (discovered 1 exit: [Mat]) History --------- Turn | Location | Event 43 | -11/Scrapyard | Discovered new exit (range 16) 137 | -11/Scrapyard | Entered Materials 289 | -10/Materials | Discovered new exit (range 8) 312 | -10/Materials | Build established: Mutant 364 | -10/Materials | Entered Mines 387 | -10/Mines | Core integrity fell below 50% 399 | -10/Mines | Learned Materials non-interactive machine intel 409 | -10/Mines | Lost 4 parts (1p2n1w) 453 | -10/Mines | Found a Scrap Suit stashed away for nefarious purposes 456 | -10/Mines | Found Scrap Suit 481 | -10/Mines | Learned location of Storage (-9) 642 | -10/Mines | Deemed a non-threat by the Exiles lab entrance 643 | -10/Mines | Discovered new exit (range 5) 647 | -10/Mines | Entered Exiles 670 | -10/Exiles | Met 8R-AWN 680 | -10/Exiles | Build established: Scavenger-Mutant 686 | -10/Exiles | Met EX-HEX 713 | -10/Exiles | Met EX-BIN 724 | -10/Exiles | Met EX-DEC 732 | -10/Exiles | Learned location of Zion (-7) 786 | -10/Exiles | Discovered new exit (range 14) 800 | -10/Exiles | Entered Mines 803 | -9/Mines | Received a Mining Laser from a helpful Derelict 1180 | -9/Mines | A weapon hastily lodged in a ceiling crevice suddenly fell to the ground 1379 | -9/Mines | Core integrity fell below 20% 1416 | -9/Mines | Discovered new exit (range 16) 1453 | -9/Mines | Destroyed by G-34 Mercenary with Small Laser Last Messages --------------- 01408_ Acquired 10 matter. 01412_ Integrated Corrupted Aluminum Leg (+5). 01413_ Acquired 10 matter. 01413_ Integrated Corrupted Aluminum Leg (+3). 01413_ Complication: Ion Engine rejected. 01413_ Complication: Lgt. Assault Rifle rejected. 01413_ Complication: Aluminum Leg rejected. 01414_ Acquired 10 matter. 01416_ EXIT=FOUND 01417_ Acquired 10 matter. 01419_ Acquired Lgt. Assault Rifle. 01422_ MW|E7D/A=GRKZIO/A B3Z2%VC|IZ% 01422_ Acquired 10 matter. 01430_ Acquired Sml. Laser. 01433_ Acquired Aluminum Leg. 01441_ K-01 Serf collects debris. 01444_ System corrupted: Imp. Terrain Scanner rejected. 01446_ K-01 Serf collects debris. Map ----- +----------------------------------------------------+ | ???????????????????????????????????????????????? ? | | ?????????????????????????????????????????????#?? ? | | ?????????????????????????????????????????????????? | | ?????????????????????????????????????????????????? | | ??????????????????????????????????????????? ???? ? | | ?????????????????????????????????????????????????# | | ????????????????????????????????????????????????#? | | ?????????????????????????????????????????????????? | | ?????????????????????????????????????????????????? | | ???????????????????????????????????????#?????????# | | ??????????????????????????? ????#???#????????????# | | ?????????????????????# ???????#??????#???????#???? | | ?????????????????????# ????????????###?????#????? | | ?????????????????????# ???#??#???#???#???????#??? | | ?????????????????????# ???????????#?????????????? | | ?????????????????????# ?????????#?#?????????????? | | ????????????????????## #???#??#?????????????#???? | | ????????????????????# ????????###??????? #??#?# | | ???????????????????## ???????? #?###### #???# | | ???????????????????# ?###????# #?# ????? | | ?????????????????## ????????# #?# ??????? | | ?????????????????# """ ##?##???# #?# #?????#?## | | ?????????????????# """ ######## ### #????????? | | ??????????????????# """ !% ! #????????# | | ???????????????????# g ! %* * %! #????##??? | | ???????????????????## @### ######## ##????#???? | | ????????????????????## ##?# #?#????# ######????? | | ?????????????????????# #??# #?????## #?????? | | ?????????????????????# ????# #??????##### ##????? | | ?????????????????????# ????# #??????????# #?????? | | ?????????????????????# ?????# #??????????# #?????? | | ?????????????????????##?????# ??????????# #?????? | | ????????????????????????????# #??????#???# #????#? | | ??????????????????????#?????? ???????????# #?????? | | ????????????????????????????? ?### ??#???# #?????? | | ????????????????????????????? ????????#??# ######? | | ????????????????????????????? ???????????# #? | | ????????????????????????????? ? ??? ?##?####### #? | | ?????????????????????????????#??? ???????#????# #? | | ??????????????????????????????? ???